Cogmind - Beta 15 @@@ ROGUE MODE // 2025.07.30 @ 17:30:01 Player: Dex'o Result: Destroyed by S-27 Virus with Autogun Performance ------------- Evolutions (3) 1500 Regions Visited (7) 1400 Robots Destroyed (25) 125 Value Destroyed (799) 799 Prototype IDs (7) 140 Alien Tech Used (0) 0 Bonus (547) 547 TOTAL SCORE: 4511 Bonus ------- Follower Combat Kills 47 Entered Garrisons 200 Aligned with FarCom 300 Cogmind --------- Core Integrity 0/700 Matter 135/300 Energy 100/100 System Corruption 2% Temperature Cool (25) Movement Core (50) Location -7/Garrison Parts ------- > --- POWER (1) -------- (None) > --- PROPULSION (4) --- (None) > --- UTILITY (6) ------ Machine Analyzer 0b10 Alert Chip > --- WEAPON (2) ------- (None) > --- INVENTORY (5) ---- Seismic Detector Particle Charger ECM Suite EM Pulse Cannon Particle Cannon Peak State ------------ > --- POWER ------------ Light Nuclear Core > --- PROPULSION ------- Xenon Bombardment Thruster Xenon Bombardment Thruster > --- UTILITY ---------- Lightpack 2.0 Machine Analyzer 0b10 Alert Chip Trap Reconfigurator > --- WEAPON ----------- Particle Cannon Gauss Rifle > --- INVENTORY -------- Nuclear Core Light Nuclear Core Micro Nuclear Core VSS Leg Improved Heat Sink Medium Battery Weight Redist. System Advanced Visual Processing Unit Advanced Visual Processing Unit Advanced Visual Processing Unit Seismic Detector Advanced Targeting Computer Matter Filter Particle Charger ECM Suite ECM Suite ECM Suite ECM Suite Improved Utility Shielding Improved Utility Shielding Improved Utility Shielding Improved Medium Armor Plating EM Pulse Cannon High-powered Shotgun Gauss Rifle Signal Generator [Rating: 72] Favorites ----------- Power Ion Engine Engine Ion Engine Power Core Light Nuclear Core Propulsion Wheel Leg Aluminum Leg Wheel Wheel Hover Unit Hover Unit Flight Unit Xenon Bombardment Thruster Utility Small Storage Unit Device Seismic Detector Storage Small Storage Unit Processor 0b10 Alert Chip Protection Hardened Medium Armor Plating Weapon Medium Laser Energy Gun Medium Laser Energy Cannon Beam Cannon Ballistic Gun Enhanced Autogun Special Weapon Mining Laser Special Melee Weapon Datajack Build | -11 -10 -10 -10 -9 -8 -7 -7 ------- Run | Yrd Mat Min Exi Min Mat Fac Gar Slots Evolved 6 | . . . . . 4 2 . Power . | . . . . . . . . Propulsion 2 | . . . . . 2 . . Utility 4 | . . . . . 2 2 . Weapon . | . . . . . . . . Parts Attached 52 | 8 4 2 4 8 13 12 1 Power 7 | 1 . . 1 1 1 3 . Engine 2 | 1 . . 1 . . . . Core 5 | . . . . 1 1 3 . Reactor . | . . . . . . . . Propulsion 20 | 2 2 . 3 4 6 3 . Treads . | . . . . . . . . Leg 10 | . 2 . 1 2 5 . . Wheel 5 | 2 . . . 2 1 . . Hover 2 | . . . 2 . . . . Flight 3 | . . . . . . 3 . Utility 9 | 2 . . . 1 2 4 . Device 3 | 1 . . . 1 . 1 . Storage 2 | 1 . . . . 1 . . Processor 2 | . . . . . 1 1 . Hackware . | . . . . . . . . Protection 2 | . . . . . . 2 . Artifact . | . . . . . . . . Weapon 16 | 3 2 2 . 2 4 2 1 Energy Gun 5 | 1 1 . . 1 2 . . Energy Cannon 3 | . . 1 . 1 1 . . Ballistic Gun 6 | 2 . . . . 1 2 1 Ballistic Cannon . | . . . . . . . . Launcher . | . . . . . . . . Special Weapon 1 | . 1 . . . . . . Impact Weapon . | . . . . . . . . Slashing Weapon . | . . . . . . . . Piercing Weapon . | . . . . . . . . Special Melee Weapon 1 | . . 1 . . . . . Unidentified Prototypes 5 | . . . . 1 4 . . Parts Lost 17 | . 1 . . . 9 4 3 Power 2 | . . . . . 2 . . Propulsion 10 | . 1 . . . 5 2 2 Utility 3 | . . . . . . 2 1 Weapon 2 | . . . . . 2 . . Highest Loss Streak 3 | . 1 . . . 3 2 3 To Critical Strikes . | . . . . . . . . Average Backups 11 | 3 7 8 6 5 16 19 26 Power . | . 1 1 . . . 1 3 Propulsion 2 | 1 3 3 1 . 2 . 1 Utility 4 | . . . 1 3 8 12 18 Weapon 3 | 1 1 3 2 1 4 5 4 Tool/Special . | . . . . . . . . Unused Backups 22 | . 1 . . 1 . 2 18 Power 1 | . . . . . . . 1 Propulsion 3 | . 1 . . 1 . . 1 Utility 18 | . . . . . . 2 16 Weapon . | . . . . . . . . Tool/Special . | . . . . . . . . Average Slot Usage (%) 82 | . 99 100 100 100 70 43 49 Engine 7 | . 14 14 14 8 . . . Core 3 | . . . . 5 8 3 5 Leg 13 | . 6 28 26 24 4 2 . Wheel 10 | . 21 . . 3 22 . . Device 8 | . 14 14 14 14 1 4 7 Storage 11 | . 14 14 14 14 8 7 7 Processor 3 | . . . . . 7 8 15 Energy Gun 9 | . 20 14 14 . 7 . . Energy Cannon 6 | . . 5 14 27 5 . . Ballistic Gun 2 | . 5 . . . 3 5 . Special Melee Weapon 1 | . . 7 . . . . . Peak Build Rating 72 | 7 7 7 11 22 63 66 72 Average Rating 29 | 4 6 7 9 13 55 53 60 On Entrance 20 | . 7 7 7 11 22 46 66 Naked Turns . | . . . . . . . . Heaviest Build 26 | 15 15 16 16 18 21 26 11 Greatest Support 55 | 26 26 20 20 20 55 15 12 Greatest Overweight (x) 8 | 1 . . 1 1 1 8 1 Average Overweight (x) . | . . . . . . . . Largest Inventory Capacity 40 | 8 8 8 8 8 40 40 40 Average Capacity 22 | 7 8 8 8 8 39 40 37 Most Carried 30 | 6 8 8 8 8 22 30 28 Average Carried 12 | 4 7 8 7 7 17 20 25 Final Capacity 40 | 8 8 8 8 8 40 40 5 Final Carried 28 | 4 8 8 8 8 20 28 5 Class Distribution -------------------- 53% | Mutant 45% | Hauler-Mutant Dominant Class ---------------- Mutant | -10/Materials Mutant | -10/Mines Mutant | -10/Exiles Mutant | -9/Mines Hauler-Mutant | -8/Materials Hauler-Mutant | -7/Factory Hauler-Mutant | -7/Garrison Resources | -11 -10 -10 -10 -9 -8 -7 -7 ----------- Run | Yrd Mat Min Exi Min Mat Fac Gar Matter Collected 840 | 300 62 30 . 150 298 . . Remotely . | . . . . . . . . Salvage Created 1093 | 105 294 17 . 142 535 . . Parts 59 | 5 15 1 . 13 25 . . Haulers Intercepted . | . . . . . . . . Recyclers Shooed . | . . . . . . . . Parts Field Recycled . | . . . . . . . . Retrieved Matter . | . . . . . . . . Parts Self-Destructed . | . . . . . . . . Prevented . | . . . . . . . . Kills | -11 -10 -10 -10 -9 -8 -7 -7 ------- Run | Yrd Mat Min Exi Min Mat Fac Gar Combat Hostiles Destroyed 19 | . 7 1 . 3 8 . . Guns 15 | . 7 1 . . 7 . . Cannons 4 | . . . . 3 1 . . Classes Destroyed 8 | 2 2 1 . . 3 . . Worker 1 | . . . . . 1 . . Tunneler 2 | 1 . . . 1 . . . Recycler 2 | 1 . . . . 1 . . Watcher 1 | . 1 . . . . . . Swarmer 1 | . . 1 . . . . . Grunt 15 | . 7 . . 3 5 . . Sentry 2 | . . . . . 2 . . Hunter 1 | . . . . . 1 . . Best Kill Streak 3 | 2 2 1 . 2 3 . . Combat Bots Only 3 | . 2 1 . 2 3 . . Max Kills in Single Turn 1 | 1 1 1 . 1 1 . . Gunslinging . | . . . . . . . . Exploded . | . . . . . . . . Melee . | . . . . . . . . Uniques/NPCs Destroyed . | . . . . . . . . Combat | -11 -10 -10 -10 -9 -8 -7 -7 -------- Run | Yrd Mat Min Exi Min Mat Fac Gar Hostile Shots Fired 477 | . 31 . . 10 150 230 56 Missed 165 | . 9 . . 3 43 89 21 Hits 312 | . 22 . . 7 107 141 35 Projectile 312 | . 22 . . 7 107 141 35 Critical Strikes 3 | . . . . . 1 . 2 Damage Taken 3464 | . 256 16 . 104 1400 1210 478 Core 1139 | . 63 . . 31 338 402 305 Absorbed by Shields 68 | . . . . . . . 68 Core Remaining (%) 66 | 100 . . . 62 38 . . Volleys Fired 76 | 5 23 3 . 7 34 4 . Largest 2 | 2 2 2 . 2 2 2 . Hottest 138 | 40 100 110 . 128 138 53 . Shots Fired 144 | 10 44 6 . 14 62 8 . Gun 117 | 10 42 3 . . 54 8 . Cannon 23 | . . 3 . 14 6 . . Launcher . | . . . . . . . . Special 4 | . 2 . . . 2 . . Kinetic 50 | 10 4 . . . 28 8 . Thermal 90 | . 40 6 . 14 30 . . Explosive . | . . . . . . . . Electromagnetic 4 | . . . . . 4 . . Robot Hit Streak 8 | 6 6 2 . 3 8 3 . Robot Miss Streak 4 | 1 4 2 . 2 3 3 . Penetration Max . | . . . . . . . . Secondary Targets 1 | . . . . . 1 . . Max Gunslinging Chain 1 | . . . . . 1 . . Shots Hit Robots 88 | 9 25 3 . 8 38 5 . Core Hits 44 | 3 15 1 . 5 18 2 . Critical Kills . | . . . . . . . . Critical Parts Destroyed . | . . . . . . . . Critical Strikes 4 | . 2 1 . . 1 . . Burn 4 | . 2 1 . . 1 . . Melee Attacks 1 | . . 1 . . . . . Impact . | . . . . . . . . Slashing . | . . . . . . . . Piercing . | . . . . . . . . Sneak Attacks 1 | . . 1 . . . . . Combat Hostiles . | . . . . . . . . Follow-up Attacks . | . . . . . . . . Damage Inflicted 1599 | 105 335 36 . 226 788 109 . Guns 1212 | 105 308 12 . . 683 104 . Cannons 297 | . . 18 . 212 67 . . Explosions . | . . . . . . . . Melee . | . . . . . . . . Ramming 90 | . 27 6 . 14 38 5 . Kinetic 555 | 105 35 . . . 311 104 . Thermal 907 | . 273 30 . 212 392 . . Explosive . | . . . . . . . . Electromagnetic 47 | . . . . . 47 . . Impact . | . . . . . . . . Slashing . | . . . . . . . . Piercing . | . . . . . . . . Highest Corruption 2 | . . . . . . 2 2 Average Corruption 2 | . . . . . . 2 2 Corruption Purged . | . . . . . . . . Corruption Blocked . | . . . . . . . . Overload Shots . | . . . . . . . . Overflow Damage . | . . . . . . . . Projectiles . | . . . . . . . . Explosions . | . . . . . . . . Melee . | . . . . . . . . Knockbacks 2 | . 2 . . . . . . Impact 2 | . 2 . . . . . . Kinetic . | . . . . . . . . Secondary . | . . . . . . . . Self-Inflicted Damage 34 | . 13 . . . 19 2 . Shots . | . . . . . . . . Rammed 5 | . 2 . . . 2 1 . Targets Rammed 9 | . 2 2 . 1 3 1 . Kicked 4 | . . 2 . 1 1 . . Crushed . | . . . . . . . . Highest Temperature 277 | . 272 153 . 211 277 16 11 Average Temperature 89 | . 90 77 . 95 93 7 11 Received Heat Transfer 1075 | . 132 9 . 60 423 216 235 Effects 2 | . 1 . . . 1 . . Energy Bleed 2 | . 1 . . . 1 . . Siege Activations . | . . . . . . . . Martial Activations . | . . . . . . . . Shielding Activations . | . . . . . . . . Robots Disrupted . | . . . . . . . . Combat Hostiles . | . . . . . . . . Robots Corrupted . | . . . . . . . . Combat Hostiles . | . . . . . . . . Parts Fried . | . . . . . . . . Impact Corruptions . | . . . . . . . . Robots Melted . | . . . . . . . . Combat Hostiles . | . . . . . . . . Parts Melted 3 | . 2 1 . . . . . Heat Transferred 2294 | . 962 148 . 407 777 . . Parts Sabotaged . | . . . . . . . . Parts Stolen . | . . . . . . . . Parts Stripped . | . . . . . . . . Power Chain Reactions . | . . . . . . . . Alert | -11 -10 -10 -10 -9 -8 -7 -7 ------- Run | Yrd Mat Min Exi Min Mat Fac Gar Maximum Alert Level . | . . . . . . . . Low Security (%) 100 | 100 100 100 . 100 100 100 100 Level 1 . | . . . . . . . . Level 2 . | . . . . . . . . Level 3 . | . . . . . . . . Level 4 . | . . . . . . . . Level 5 . | . . . . . . . . High Security . | . . . . . . . . Max Security . | . . . . . . . . Peak Influence 102 | 5 102 52 . 40 87 49 20 Initial 31 | . 3 18 . . . 31 8 Average 11 | 1 26 5 . 7 11 11 13 Influence Increases 791 | 10 231 78 . 75 275 110 12 Destroy 0b10 Robot/C 408 | . 140 60 . 60 148 . . Destroy 0b10 Robot/NC 28 | 10 5 . . 5 8 . . Destroy Leader 102 | . 32 10 . 10 50 . . Allied During Kill 10 | . . 8 . . 2 . . Successful Hack 34 | . 5 . . . 4 25 . Disable Machine 12 | . . . . . 12 . . Destroy Structure 8 | . 4 . . . 3 1 . Partial Spotted 42 | . 30 . . . . . 12 Lose Combat Pursuer 147 | . 15 . . . 48 84 . Influence Decreases 791 | 5 188 126 . 75 205 168 24 Entered New Map 75 | . 2 30 . . . 39 4 Time Decay 557 | 5 176 76 . 75 105 120 . Lost Part 110 | . 10 . . . 80 . 20 Lost Ally 40 | . . 20 . . 20 . . Purge Threat 9 | . . . . . . 9 . Squads Dispatched 11 | . 4 . . 1 3 3 . Investigation 6 | . 2 . . . 2 2 . Extermination 1 | . . . . . . 1 . Reinforcement 3 | . 2 . . . 1 . . Assault 1 | . . . . 1 . . . Garrison . | . . . . . . . . Intercept . | . . . . . . . . Searches Triggered . | . . . . . . . . Construction Impeded 1 | . . . . . 1 . . Haulers Reinforced . | . . . . . . . . Active Scanning Responses . | . . . . . . . . Cargo Convoy Interrupts . | . . . . . . . . Stealth | -11 -10 -10 -10 -9 -8 -7 -7 --------- Run | Yrd Mat Min Exi Min Mat Fac Gar Distress Signals 2 | . 1 . . . . 1 . Communications Jammed . | . . . . . . . . Distress Signals . | . . . . . . . . Times Spotted 66 | . 13 3 . 3 22 9 16 Peak Tracking Total 15 | . 3 3 . 2 12 6 15 Tactical Retreats 6 | . 1 . . . 2 3 . Traps | -11 -10 -10 -10 -9 -8 -7 -7 ------- Run | Yrd Mat Min Exi Min Mat Fac Gar Traps Triggered 4 | . 1 . . . 1 1 1 Indirectly . | . . . . . . . . Trap Hack Attempts . | . . . . . . . . Triggered . | . . . . . . . . Disarmed . | . . . . . . . . Reprogrammed . | . . . . . . . . Reused . | . . . . . . . . Traps Reconfigurated 1 | . . . . . . . 1 Traps Extracted . | . . . . . . . . Installed . | . . . . . . . . Triggered . | . . . . . . . . Machines | -11 -10 -10 -10 -9 -8 -7 -7 ---------- Run | Yrd Mat Min Exi Min Mat Fac Gar Machines Disabled 1 | . . . . . 1 . . Max in Single Turn 1 | . . . . . 1 . . Machines Repaired . | . . . . . . . . Machines Dismantled . | . . . . . . . . Machines Sabotaged . | . . . . . . . . Overloaded Fab Kills . | . . . . . . . . Hacking | -11 -10 -10 -10 -9 -8 -7 -7 --------- Run | Yrd Mat Min Exi Min Mat Fac Gar Machines Accessed 12 | . 2 . . . 2 8 . Terminals 11 | . 2 . . . 2 7 . Fabricators . | . . . . . . . . Repair Stations . | . . . . . . . . Recycling Units . | . . . . . . . . Scanalyzers . | . . . . . . . . Garrison Access 1 | . . . . . . 1 . Total Hacks 33 | . 8 . . . 5 20 . Successful 11 | . 3 . . . 1 7 . Failed 22 | . 5 . . . 4 13 . Catastrophic 5 | . . . . . 2 3 . Database Lockouts . | . . . . . . . . Manual 33 | . 7 . 1 . 6 19 . Terminals 32 | . 8 . . . 5 19 . Fabricators . | . . . . . . . . Repair Stations . | . . . . . . . . Recycling Units . | . . . . . . . . Scanalyzers . | . . . . . . . . Garrison Access 1 | . . . . . . 1 . Terminal Hacks 5 | . . . . . . 5 . Prototype ID Bank 1 | . . . . . . 1 . Open DSF 1 | . . . . . . 1 . Terminal Index 1 | . . . . . . 1 . Fabricator Index 1 | . . . . . . 1 . Unreport Threat 1 | . . . . . . 1 . Fabricator Hacks . | . . . . . . . . Repair Station Hacks . | . . . . . . . . Recycling Unit Hacks . | . . . . . . . . Scanalyzer . | . . . . . . . . Garrison Access Hacks 1 | . . . . . . 1 . Unlock Access 1 | . . . . . . 1 . Unauthorized Hacks 5 | . 3 . . . 1 1 . Terminals 5 | . 3 . . . 1 1 . Assimilate 1 | . 1 . . . . . . Botnet 4 | . 2 . . . 1 1 . Fabricators . | . . . . . . . . Repair Stations . | . . . . . . . . Recycling Units . | . . . . . . . . Scanalyzers . | . . . . . . . . Garrison Access . | . . . . . . . . Data Cores Recovered . | . . . . . . . . Used . | . . . . . . . . Hacking Detections 11 | . 2 . . . 2 7 . Full Trace Events 5 | . 2 . . . 1 2 . Feedback Events . | . . . . . . . . Feedback Blocked . | . . . . . . . . Robot Schematics Acquired . | . . . . . . . . Robots Built . | . . . . . . . . Authchips . | . . . . . . . . Time . | . . . . . . . . Total Robot Build Rating . | . . . . . . . . Part Schematics Acquired . | . . . . . . . . Parts Built . | . . . . . . . . Authchips . | . . . . . . . . Time . | . . . . . . . . Total Part Build Rating . | . . . . . . . . Parts Repaired . | . . . . . . . . Time . | . . . . . . . . Parts Recycled . | . . . . . . . . Recycled Matter . | . . . . . . . . Retrieved Matter . | . . . . . . . . Retrieved Components . | . . . . . . . . Parts Scanalyzed . | . . . . . . . . Part Schematics Acquired . | . . . . . . . . Parts Damaged . | . . . . . . . . Bothacking | -11 -10 -10 -10 -9 -8 -7 -7 ------------ Run | Yrd Mat Min Exi Min Mat Fac Gar Used RIF Installer . | . . . . . . . . Robots Hacked . | . . . . . . . . Non-combat . | . . . . . . . . Combat . | . . . . . . . . Robot Hacks Applied . | . . . . . . . . Relay Couplers Released . | . . . . . . . . Fabnet Peak Effective % . | . . . . . . . . Robots Rewired . | . . . . . . . . Allies Hacked . | . . . . . . . . Hacks Repelled . | . . . . . . . . Allies | -11 -10 -10 -10 -9 -8 -7 -7 -------- Run | Yrd Mat Min Exi Min Mat Fac Gar Total Allies 4 | . . 3 . 1 . . . Largest Group 3 | . . 3 2 2 1 . . Highest-Rated Group 40 | . . 40 24 31 31 . . Highest-Rated Ally 31 | . . 16 16 31 31 . . Total Orders . | . . . . . . . . Ally Attacks 18 | . . 11 . 3 4 . . Total Damage 204 | . . 117 . 47 40 . . Kills 4 | . . 2 . 1 1 . . Allies Corrupted . | . . . . . . . . Allies Melted . | . . . . . . . . Intel | -11 -10 -10 -10 -9 -8 -7 -7 ------- Run | Yrd Mat Min Exi Min Mat Fac Gar Active Infowar (turns) 3037 | 1 688 1108 370 360 . 438 72 Sensors 326 | . . . . . . 326 . Seismic 2527 | 1 688 1108 370 360 . . . Machine Analysis 184 | . . . . . . 112 72 Robot Analysis Total . | . . . . . . . . Derelict Logs Recovered 3 | . . 3 . . . . . Drone Launches . | . . . . . . . . Drone Recoveries . | . . . . . . . . Exploration | -11 -10 -10 -10 -9 -8 -7 -7 ------------- Run | Yrd Mat Min Exi Min Mat Fac Gar Turns Passed 4935 | 96 688 1108 370 422 1609 570 72 Spaces Moved 3010 | 69 392 678 292 224 553 720 82 Core 101 | 4 . . . . . 87 10 Treads . | . . . . . . . . Legs 1452 | . 81 678 282 176 143 92 . Wheels 834 | 65 311 . . 48 410 . . Hover 10 | . . . 10 . . . . Flight 613 | . . . . . . 541 72 Fastest Speed 37 | 50 90 120 116 80 80 37 37 Average Speed 96 | 88 96 120 119 111 90 71 43 Slowest Speed 450 | 100 120 120 120 120 120 450 100 Overloaded Moves . | . . . . . . . . Propulsion Burnouts . | . . . . . . . . Robots Hopped 2 | . . . . . . 1 1 Potential Cave-ins . | . . . . . . . . Cave-ins Triggered . | . . . . . . . . Exploration Rate (%) 42 | 3 45 99 68 42 36 23 22 Regions Visited 7 Branch Regions 3 Pre-discovered Areas 3 | . . 3 . . . . . Known Exits Taken 1 | . . . . . . 1 . Unknown Exits Taken 6 | 1 1 1 1 1 1 . . Scrap Searched 2 | . . 1 . 1 . . . Spaces Dug 4 | . 2 . . . 2 . . Terrain Destroyed 4 | . 2 . . . 2 . . Melee . | . . . . . . . . Projectile 4 | . 2 . . . 2 . . AOE . | . . . . . . . . Terrain Rammed . | . . . . . . . . Walls Destroyed . | . . . . . . . . Machines Disabled . | . . . . . . . . Actions | -11 -10 -10 -10 -9 -8 -7 -7 --------- Run | Yrd Mat Min Exi Min Mat Fac Gar Total 4897 | 92 656 964 314 380 1604 767 120 Wait 1626 | 3 221 279 . 132 960 6 25 Move 2999 | 68 391 677 291 223 552 717 80 Hop 2 | . . . . . . 1 1 Pick Up 74 | 7 9 . 7 3 29 18 1 Fast Attach 7 | 4 . . 1 . . 2 . Attach 33 | 4 3 . 1 . 11 11 3 Detach 12 | 1 1 . . . 3 5 2 Swap 28 | . 2 2 4 9 10 1 . Drop 25 | . 4 . 10 5 2 1 3 Fire 76 | 5 23 3 . 7 34 4 . Melee 1 | . . 1 . . . . . Ram 5 | . 2 . . . 2 1 . Kick 4 | . . 2 . 1 1 . . Crush . | . . . . . . . . Escape Stasis 5 | . . . . . . . 5 Rewire . | . . . . . . . . Trap . | . . . . . . . . Miscellaneous . | . . . . . . . . Route ------- -11/Scrapyard -10/Materials -10/Mines (discovered 4 exits: [*Mat x2] / *Exi / [*Sub]) -10/Exiles -9/Mines -8/Materials -7/Factory -7/Garrison History --------- Turn | Location | Event 17 | -11/Scrapyard | Discovered new exit (range 16) 97 | -11/Scrapyard | Entered Materials 301 | -10/Materials | Build established: Mutant 779 | -10/Materials | Discovered new exit (range 6) 785 | -10/Materials | Entered Mines 834 | -10/Mines | Assisted by bots powering up and referring to "LRC-V3" 836 | -10/Mines | Learned location of Zion (-6) 882 | -10/Mines | Discovered new exit (range 11) 891 | -10/Mines | Discovered new exit (range 10) 1009 | -10/Mines | Discovered new exit (range 10) 1020 | -10/Mines | Assembled infested the area 1340 | -10/Mines | Learned location of Storage (-9) 1887 | -10/Mines | Deemed a non-threat by the Exiles lab entrance 1888 | -10/Mines | Discovered new exit (range 5) 1893 | -10/Mines | Entered Exiles 1893 | -10/Exiles | Accompanied by 2 allies 1922 | -10/Exiles | Met 8R-AWN 1944 | -10/Exiles | Met EX-HEX 1981 | -10/Exiles | Met EX-BIN 1994 | -10/Exiles | Aligned with FarCom system 1995 | -10/Exiles | Given EX-Vault access code 2023 | -10/Exiles | Opened EX-Vault 2047 | -10/Exiles | Found Prototype Storage 2051 | -10/Exiles | Found Prototype Device 2053 | -10/Exiles | Found Prototype Processor 2109 | -10/Exiles | Warned to stay clear of 0b10 Research branches 2182 | -10/Exiles | Met EX-DEC 2248 | -10/Exiles | Discovered new exit (range 10) 2263 | -10/Exiles | Stole three prototypes: Lightpack 2.0, Trap Reconfigurator, 0b10 Alert Chip 2263 | -10/Exiles | Entered Mines 2263 | -9/Mines | Accompanied by 2 allies 2271 | -9/Mines | Found DCF Scrap (12 items) 2274 | -9/Mines | Met a Derelict bent on vengeance 2623 | -9/Mines | Identified Trap Reconfigurator 2677 | -9/Mines | Met a Derelict testing a Signal Generator 2680 | -9/Mines | Discovered new exit (range 5) 2682 | -9/Mines | Found Signal Generator 2685 | -9/Mines | Entered Materials 2685 | -8/Materials | Accompanied by 1 ally 2685 | -8/Materials | Evolved 4 slots: Propulsion x2, Utility x2 2686 | -8/Materials | Identified Lightpack 2.0 2866 | -8/Materials | Identified 0b10 Alert Chip 2984 | -8/Materials | Build established: Hauler-Mutant 4070 | -8/Materials | Lost 3 parts (1p2n) 4232 | -8/Materials | Core integrity fell below 50% 4278 | -8/Materials | Lost 3 parts (3n) 4283 | -8/Materials | Discovered new exit (range 9) 4294 | -8/Materials | Entered Factory 4294 | -7/Factory | Evolved 2 slots: Utility x2 4296 | -7/Factory | FarCom data flow suspended 4638 | -7/Factory | Core integrity fell below 50% 4670 | -7/Factory | Noticed a derelict Sapper rigging charges 4862 | -7/Factory | Identified exit to Garrison 4864 | -7/Factory | Entered Garrison 4876 | -7/Garrison | Triggered checkpoint 4927 | -7/Garrison | Triggered checkpoint 4933 | -7/Garrison | Core integrity fell below 20% 4936 | -7/Garrison | Triggered checkpoint 4936 | -7/Garrison | Destroyed by S-27 Virus with Autogun Last Messages --------------- Acquired Xenon Bombardment Thruster. Xenon Bombardment Thruster destroyed. Critical hit (Burn: +37). Beams of light sweep through the air. An alarm sounds. Lightpack 2.0 destroyed. Triggered Stasis Trap. A bubble of rippling energy engulfs the area. Field strength at 94. Field strength at 88. Stasis Trap reprogrammed. Dropped Trap Reconfigurator. Field strength at 62. Field strength at 51. Field strength at 37. Beams of light sweep through the air. An alarm sounds. Field strength at 14. Critical hit (Burn: +26). Stasis field depleted. Map ----- +----------------------------------------------------+ | ?????????????????????????????????????????????# # | | ?????????????????????????????????????????????# # | | ?????????????????????????????????????????????# # | | ?????????????????????????????????????????????# # | | ?????????????????????????????????????????????# # | | ?????????????????????????????????????????????# # | | ?????????????????????????????????????????????# # | | ?????????????????????????????????????????????# # | | ?????????????????????????????????????????????# # | | ????????????????????????###################### # | | ????????????????????????# # | | ????????????????????????# | | ????????????????????????# | | ????????????????????????# ###################### | | ????????????????????????# #????????????????????? | | ????????????????????????# * #????????????????????? | | ????????????????????????#g #????????????????????? | | ????????????????????????#ggg#????????????????????? | | ??????????????????####??# #????????????????????? | | ??????????????????# ?# ####### #???????????? | | ?????????????## ## ## + ????????? | | ????????????## *!!!!g#######??????????????? | | ????????? + !&![! #????????????????????? | | ????????????## !!*[!s*#????????????????????? | | ?????????????# ## !##ss #????????????????????? | | ?????????????#????# ?#@! #????????????????????? | | ???????????????? ? !! #??????????????????? | | ?????????????? g#??????????????????? | | ?????????????" #??????????????????? | | ?????????????" g#??????????????????? | | ?????????????# ## ## ###??????????????????? | | ?????????????# ?# ?# #????????????????????? | | ?????????????# ? s ? #????????????????????? | | ?????????????# ? s ?? #????????????????????? | | ??????????????? ?? #????????????????????? | | ?????????????? ss##""???# ##????????????????????? | | ?????????????? ???????? #?????????????????????? | | ????????????????????????? #?????????????????????? | | ????????????????????????? ??????????????????????? | | ????????????????????????? ??????????????????????? | | ????????????????????????? ??????????????????????? | | ?????????????????????????????????????????????????? | | ?????????????????????????????????????????????????? | | ?????????????????????????????????????????????????? | | ?????????????????????????????????????????????????? | | ?????????????????????????????????????????????????? | | ?????????????????????????????????????????????????? | | ?????????????????????????????????????????????????? | | ?????????????????????????????????????????????????? | | ?????????????????????????????????????????????????? | +----------------------------------------------------+ Best States ------------- Heat Dissipation 34 Energy Generation 15 Energy Capacity 250 Matter Stores 300 Matter Capacity 300 Sight Range 16 Robot Scan Range 15 Terrain Scan Density 10 Armor Coverage 225 Evasion (%) 62 Item Schematics ----------------- None Robot Schematics ------------------ None Fabricated ------------ Nothing Repaired ---------- Nothing Alien Tech Used ----------------- None Achievements -------------- Packrat Challenges ------------ None Game ------ Seed DecoyNullFilter Manual? 0 Play Time 01:01:11 Cumulative 11.2 hours Start 2025.07.30 @ 16:24:53 End 2025.07.30 @ 17:30:01 Sessions 1 Manual Loads 0 Difficulty Rogue Special Mode None Game No. 16 Rogue 16 Adventurer 0 Explorer 0 Win Type - Total 0 Types 0/0/0/0/0/0/0/0/0/0 Lore% 10 Gallery% 15 Achievement% 16 Wizard Run 0 Options --------- Layout 1 ASCII 0 Keyboard 0 Movement Mouse Keybinds 0 Fullscreen 2 Font 24/Smallcaps Map View 50x35 Zoom Use 0% Tactical HUD 0 Map Filters NONE Filters NONE Steam 1 RUN: baf8c29c-3883-4784-9382-84e9062efd86